[Event "1st Bangalore GM-Open-A 2024"]
[Site "Bangalore"]
[Date "2024.01.21"]
[Round "5.23"]
[White "Karthikeyan, P.."]
[Black "Das, Sayantan"]
[Result "0-1"]
[ECO "E08"]
[WhiteElo "2287"]
[BlackElo "2514"]
[Annotator "TA"]
[PlyCount "68"]
[EventDate "2024.01.20"]
[EventType "swiss"]
[EventCountry "IND"]
[SourceTitle "playchess.com"]
[Source "ChessBase"]
[SourceQuality "1"]
[TimeControl "5400+30"]

{[%evp 20,68,10,0,27,35,27,0,0,0,0,0,0,0,8,-18,-18,-10,-8,-50,-40,-118,-107,-120,-98,-110,-108,-208,-199,-191,-164,-241,-252,-374,-380,-370,-360,-520,-506,-639,-622,-635,-607,-625,-588,-560,-564,-532,-512,-528,-489]} 1. d4 {[%emt 0:09:25]} d5 {[%emt 0:00:26]} 2. c4 {[%emt 0:03:03]} e6 {[%emt 0:00:06]} 3. Nf3 {[%emt 0:00:09]} Nf6 {[%emt 0:00:35]} 4. g3 {[%emt 0:01:01]} Bb4+ {[%emt 0:01:56]} 5. Bd2 {[%emt 0:01:33]} Be7 {[%emt 0:00:08]} 6. Bg2 {[%emt 0:00:07]} O-O {[%emt 0:00:18]} 7. O-O {[%emt 0:00:21]} Nbd7 {[%emt 0:00:39]} 8. Qc2 {[%emt 0:01:00]} c6 {[%emt 0:00:29]} 9. Rd1 {[%emt 0:00:31]} b6 {[%emt 0:04:24]} 10. Bf4 {[%emt 0:02:30]} Bb7 {[%emt 0:04:28]} 11. Ne5 {[%emt 0:04:35]} Nxe5 {[%emt 0:11:04]} 12. dxe5 {[%emt 0:03:27]} Nd7 {[%emt 0:00:07]} 13. h4 {[%emt 0:03:06]} (13. cxd5 $5 cxd5 14. e4 $11) 13... Rc8 {[%emt 0:06:40] The position is equal.} 14. Nc3 {[%emt 0:01:32][%cal Rc4d5]} b5 {[%emt 0:07:02]} 15. cxb5 {[%emt 0:03:31]} cxb5 {[%emt 0:00:39] aiming for ...b4.} 16. Qd2 {[%emt 0:00:03]} b4 {[%emt 0:05:03] [#]} 17. Ne4 {[%emt 0:10:04]} dxe4 {[%emt 0:11:04]} 18. Qxd7 {[%emt 0:00:12]} Bd5 {[%emt 0:00:17]} 19. Qxd8 {[%emt 0:10:34]} (19. Qxa7 $5 {[%cal Rg2e4]} Bc5 20. Qa4 $15) 19... Rfxd8 {[%emt 0:04:07]} 20. Bg5 {[%emt 0:05:39] White is on the road to losing.} ({White should play} 20. Rd2 $15) 20... f6 $1 $17 {[%emt 0:05:51]} 21. exf6 {[%emt 0:01:34]} gxf6 {[%emt 0:00:05]} 22. Be3 {[%emt 0:05:04]} Rc2 {[%emt 0:01:17][%csl LRb2,LRe2]} 23. a3 {[%emt 0:03:04] [#]} (23. Rd2 $17 {keeps fighting.} Rxd2 24. Bxd2) 23... b3 $1 $19 {[%emt 0:03:18]} (23... Rxb2 24. axb4 Ra8 25. Bh3 $11) 24. Rab1 {[%emt 0:01:17]} a6 {[%emt 0:03:37]} 25. g4 {[%emt 0:05:07]} (25. Bb6 $142 Rd6 26. Ba7) 25... Kf7 {[%emt 0:02:38]} ({And not} 25... Rxe2 26. Bf1 Rc2 27. Bxa6) 26. Kh2 {[%emt 0:06:35]} (26. Rd4 {is a better defense.} Bc5 27. Ra4) 26... Rg8 {[%emt 0:04:19]} (26... Rxe2 $2 {perishes.} 27. Kh3 $19) 27. Kh3 {[%emt 0:00:31]} h5 {[%emt 0:00:15][%mdl 64] Deflection} (27... Rxe2 $2 {loses.} 28. Bf1 Rc2 29. Rd2 $19) 28. gxh5 {[%emt 0:00:51]} (28. g5 {was the only chance.}) 28... f5 {[%emt 0:00:06] Black is clearly winning.} 29. Rd2 {[%emt 0:03:20]} Rxd2 {[%emt 0:07:13]} 30. Bxd2 {[%emt 0:00:02] [#]} Rxg2 $1 {[%emt 0:00:10][%mdl 512]} 31. Kxg2 {[%emt 0:00:12] Strongly threatening Bc3.} e3+ {[%emt 0:00:03][%mdl 64] Discovered Attack} (31... Bxh4 $2 32. Bc3 Kg8 33. Rh1 $18) 32. f3 {[%emt 0:05:53] Bc3 is the strong threat.} exd2 {[%emt 0:00:05]} 33. Rd1 {[%emt 0:00:01] [#]} Bxa3 $1 {[%emt 0:01:00][%mdl 576] Promotion} 34. Rxd2 {[%emt 0:00:09]} Bf8 {[%emt 0:00:33] Weighted Error Value: White=0.40/Black=0.03 (flawless)} 0-1

[Event "1st Bangalore GM-Open-A 2024"]
[Site "Bangalore"]
[Date "2024.01.21"]
[Round "5.24"]
[White "Shyam, Sundar M."]
[Black "Vignesh B"]
[Result "1-0"]
[ECO "B30"]
[WhiteElo "2497"]
[BlackElo "2258"]
[Annotator "TA"]
[PlyCount "115"]
[EventDate "2024.01.20"]
[EventType "swiss"]
[EventCountry "IND"]
[SourceTitle "playchess.com"]
[Source "ChessBase"]
[SourceQuality "1"]
[TimeControl "5400+30"]

{[%evp 9,115,0,6,-6,-1,0,0,-32,1,11,20,11,20,11,23,18,11,17,22,13,47,17,15,15,10,14,13,0,10,12,4,6,15,0,45,0,50,31,64,54,52,64,69,38,43,35,71,47,50,19,49,0,0,0,73,12,8,10,11,4,17,24,71,71,72,73,92,80,120,120,113,113,113,113,131,127,128,141,270,271,565,542,736,745,764,711,702,580,706,670,736,651,638,608,753,742,5983,5721,5365,5233,1795,1489,29978,6079,29978,29979,29979,29980]} 1. e4 {[%emt 0:00:05]} c5 {[%emt 0:05:59]} 2. Nf3 {[%emt 0:00:14]} Nc6 {[%emt 0:00:07]} 3. Bc4 {[%emt 0:00:12]} e6 {[%emt 0:00:23]} 4. O-O {[%emt 0:00:10]} d5 {[%emt 0:01:47]} 5. exd5 {[%emt 0:04:43]} exd5 {[%emt 0:00:11]} 6. Re1+ {[%emt 0:00:03] B30: Sicilian: 2...Nc6 3 Bb5, lines without ...g6.} Be7 {[%emt 0:06:47]} 7. Bb5 {[%emt 0:00:07]} Nf6 {[%emt 0:01:44]} 8. Ne5 {[%emt 0:06:46] The position is equal.} Bd7 {[%emt 0:02:01]} 9. Bxc6 {[%emt 0:02:02]} bxc6 {[%emt 0:01:20]} 10. d3 $1 {[%emt 0:03:54]} O-O {[%emt 0:13:14] [#]} 11. Bg5 $146 {[%emt 0:00:26]} ({Predecessor:} 11. Nc3 Rb8 12. b3 Bd6 13. Nf3 Re8 14. Rf1 Qc7 15. h3 d4 16. Nb1 Nd5 17. Re1 {1-0 Jadwisiewiczak,O-Chenska,K Polanica Zdroj op-E 41st 2005 (1)}) 11... Re8 {[%emt 0:06:20]} 12. Nd2 {[%emt 0:09:45]} Rc8 {[%emt 0:22:17]} 13. Nb3 {[%emt 0:10:14]} Bf5 {[%emt 0:02:15]} 14. Qf3 {[%emt 0:00:51]} Be6 {[%emt 0:00:05]} 15. d4 {[%emt 0:19:53]} Ne4 {[%emt 0:09:35]} 16. Bxe7 {[%emt 0:00:41]} Qxe7 {[%emt 0:00:05]} 17. dxc5 {[%emt 0:05:46]} Nxc5 {[%emt 0:01:25]} 18. Qe3 {[%emt 0:09:46]} Nxb3 {[%emt 0:01:17]} 19. axb3 {[%emt 0:00:06]} c5 {[%emt 0:00:02]} 20. Nd3 {[%emt 0:00:29]} Qc7 {[%emt 0:07:59] Prevents Ra5.} 21. Nf4 {[%emt 0:05:19]} h6 {[%emt 0:07:02]} 22. h3 {[%emt 0:01:14]} Qd7 {[%emt 0:03:02]} ({Black should try} 22... d4 $11 23. Qe5 Qd7 24. Nxe6 Rxe6) 23. Qf3 {[%emt 0:00:58]} d4 {[%emt 0:02:40]} 24. Nxe6 $1 {[%emt 0:01:32]} Rxe6 {[%emt 0:01:21]} 25. Rxe6 {[%emt 0:00:02]} fxe6 $14 {[%emt 0:02:13][%mdl 4096] Endgame KQR-KQR} 26. Qd3 {[%emt 0:00:42]} Rc6 {[%emt 0:00:52]} 27. Kf1 {[%emt 0:04:02]} Rc7 {[%emt 0:00:10]} 28. Re1 {[%emt 0:02:17] White is more active.} Qd5 {[%emt 0:00:05]} 29. Qg6 {[%emt 0:02:31]} Re7 {[%emt 0:00:24]} (29... Rc6 {with more complications.} 30. Kg1 Rd6 31. Re4 Qf5) 30. Qe4 {[%emt 0:00:19]} (30. f4 $14 {might be stronger.}) 30... Qxe4 $11 {[%emt 0:01:30]} 31. Rxe4 {[%emt 0:00:02] KR-KR} d3 {[%emt 0:00:43]} 32. Ke1 {[%emt 0:04:43]} (32. cxd3 $16 Rb7 33. Rxe6) 32... dxc2 {[%emt 0:00:51]} 33. Kd2 {[%emt 0:00:01]} Kf7 {[%emt 0:00:23]} 34. Kxc2 {[%emt 0:00:07]} Rb7 {[%emt 0:00:40]} 35. Rc4 {[%emt 0:00:44]} Ke7 {[%emt 0:00:37]} (35... Rb5 $11) 36. Rxc5 $16 {[%emt 0:00:09][%cal Ob3b4] White stays focused until the end.} Kd6 {[%emt 0:00:00]} 37. Ra5 {[%emt 0:00:39]} g5 {[%emt 0:00:13] [#]} 38. b4 $1 {[%emt 0:02:21]} Rf7 {[%emt 0:01:13] [#]} (38... Rxb4 39. Rxa7) 39. f3 $1 {[%emt 0:00:13]} Rb7 {[%emt 0:00:06]} 40. Kc3 {[%emt 0:00:58]} Rc7+ {[%emt 0:00:55]} 41. Kd4 {[%emt 0:02:35]} Rb7 {[%emt 0:00:24]} 42. Ra6+ {[%emt 0:00:09]} Ke7 {[%emt 0:00:37]} 43. Kc5 {[%emt 0:01:10]} Kf6 {[%emt 0:00:02]} (43... h5 $16 {keeps fighting.} 44. b5 Rc7+ 45. Rc6 Rb7) 44. b5 $18 {[%emt 0:00:19] Kc6 would be deadly.} Ke5 $2 {[%emt 0:00:01]} (44... Ke7 {was called for.} 45. Kc6 Rd7) 45. Kc6 {[%emt 0:00:12]} Rf7 {[%emt 0:00:01]} 46. Ra4 {[%emt 0:00:24]} h5 {[%emt 0:00:01]} 47. Re4+ {[%emt 0:00:25]} Kf6 {[%emt 0:00:35]} 48. b4 {[%emt 0:00:04]} e5 {[%emt 0:00:19]} 49. b6 {[%emt 0:00:55]} axb6 {[%emt 0:00:02]} 50. b5 {[%emt 0:00:12]} Ke6 {[%emt 0:00:06]} 51. Kxb6 {[%emt 0:00:13]} Kd5 {[%emt 0:00:01]} 52. Ka6 {[%emt 0:00:37]} Rc7 {[%emt 0:00:04]} 53. b6 {[%emt 0:01:40]} Rc2 {[%emt 0:00:01]} 54. b7 {[%emt 0:00:04]} Kc6 {[%emt 0:00:55]} 55. Ka7 {[%emt 0:02:00] aiming for Ra4.} (55. b8=R $2 Ra2+) (55. b8=N+ Kd6 $11) (55. Rc4+ $2 Rxc4 56. b8=N+ Kd6 $19) 55... Rxg2 {[%emt 0:00:11]} 56. Rc4+ {[%emt 0:00:05]} (56. b8=R $2 {is a self mate.} Ra2+) (56. Ra4 $142 Rb2 57. b8=Q Rxb8 58. Kxb8 Kd7 59. Re4 Kd6 60. Kb7 g4 61. hxg4 hxg4 62. fxg4) 56... Kd5 {[%emt 0:00:01]} 57. Ra4 {[%emt 0:00:29]} (57. b8=Q $2 {is the wrong capture.} Ra2+ 58. Kb7 (58. Ra4 {gets mated.} Rxa4+ 59. Kb7 Rb4+ 60. Kc8 Rxb8+ 61. Kxb8 e4 62. fxe4+ Kxe4 63. Kc8 g4 64. hxg4 hxg4 65. Kd8 g3 66. Ke8 g2 67. Ke7 g1=Q 68. Kf6 Qd4+ 69. Kg6 Qe5 70. Kh6 Kf5 71. Kh7 Qe7+ 72. Kg8 Kf6 73. Kh8 Qg7#) 58... Rb2+ 59. Kc7 Rxb8 $19) 57... Rb2 {[%emt 0:00:04]} 58. b8=Q {[%emt 0:00:06] Weighted Error Value: White=0.11 (very precise) /Black=0.57} 1-0

[Event "1st Bangalore GM-Open-A 2024"]
[Site "Bangalore"]
[Date "2024.01.21"]
[Round "5.25"]
[White "Wagh Suyog"]
[Black "Savchenko, Boris"]
[Result "1/2-1/2"]
[ECO "A62"]
[WhiteElo "2266"]
[BlackElo "2489"]
[Annotator "RC"]
[PlyCount "121"]
[EventDate "2024.01.20"]
[EventType "swiss"]
[EventCountry "IND"]
[SourceTitle "playchess.com"]
[Source "ChessBase"]
[SourceQuality "1"]
[TimeControl "5400+30"]

1. d4 {[%emt 0:01:23]} Nf6 {[%emt 0:02:32]} 2. c4 {[%emt 0:01:13]} e6 {[%emt 0:00:10]} 3. g3 {[%emt 0:05:06]} c5 {[%emt 0:00:11]} 4. d5 {[%emt 0:00:04]} exd5 {[%emt 0:00:06]} 5. cxd5 {[%emt 0:00:02]} d6 {[%emt 0:00:06]} 6. Nc3 {[%emt 0:00:05]} g6 {[%emt 0:00:05]} 7. Bg2 {[%emt 0:00:03]} Bg7 {[%emt 0:00:21]} 8. Nf3 {[%emt 0:00:11]} O-O {[%emt 0:00:14]} 9. O-O {[%emt 0:00:11]} Re8 {[%emt 0:00:03]} 10. Bf4 {[%emt 0:00:28]} Bf5 {[%emt 0:01:46]} 11. Nh4 {[%emt 0:05:28]} Bc8 {[%emt 0:00:09]} 12. Qc1 {[%emt 0:08:08]} a6 {[%emt 0:21:40]} 13. a4 {[%emt 0:00:42]} Qc7 {[%emt 0:18:12]} 14. h3 {[%emt 0:03:29]} Nbd7 {[%emt 0:01:59]} 15. Bh6 {[%emt 0:12:49]} Bh8 {[%emt 0:02:22]} 16. Qc2 {[%emt 0:19:55]} Rb8 {[%emt 0:07:33]} 17. a5 {[%emt 0:01:31]} b5 {[%emt 0:02:19]} 18. axb6 {[%emt 0:00:15]} Nxb6 {[%emt 0:01:54]} 19. Rfd1 {[%emt 0:03:08]} Nfd7 {[%emt 0:00:52]} 20. Nf3 {[%emt 0:02:37]} Ne5 {[%emt 0:00:59]} 21. Nxe5 {[%emt 0:01:28]} Bxe5 {[%emt 0:00:39]} 22. Bc1 {[%emt 0:01:09]} Nd7 {[%emt 0:11:42]} 23. Qa4 {[%emt 0:03:33]} Rb4 {[%emt 0:00:37]} 24. Qc2 {[%emt 0:01:47]} Qb8 {[%emt 0:03:20]} 25. Ra2 {[%emt 0:02:25]} Rc4 {[%emt 0:03:43]} 26. e3 {[%emt 0:03:29]} Nb6 {[%emt 0:03:50]} 27. Kh2 {[%emt 0:04:03]} Bd7 {[%emt 0:01:16]} 28. Bf1 {[%emt 0:04:31]} Rb4 {[%emt 0:02:00]} 29. Rxa6 {[%emt 0:06:34]} Qc8 {[%emt 0:08:01]} 30. f4 {[%emt 0:00:17]} Bg7 {[%emt 0:02:39]} 31. Ra2 {[%emt 0:04:58]} Bf5 {[%emt 0:00:42]} 32. Qf2 {[%emt 0:00:21]} h5 {[%emt 0:00:26]} 33. Nb5 {[%emt 0:01:18]} Qd7 {[%emt 0:00:16]} 34. Ra7 {[%emt 0:01:32]} Qd8 {[%emt 0:00:11]} 35. Ra2 {[%emt 0:02:14]} Qd7 {[%emt 0:03:03]} 36. Ra7 {[%emt 0:00:00]} Qd8 {[%emt 0:00:09]} 37. Ra2 {[%emt 0:00:02]} Bb1 {[%emt 0:00:45]} 38. Ra1 {[%emt 0:01:11]} Be4 {[%emt 0:00:06]} 39. Nc3 {[%emt 0:00:33]} Bf5 {[%emt 0:00:08]} 40. Ra2 {[%emt 0:01:27]} Qe7 {[%emt 0:01:23]} 41. Bd2 {[%emt 0:00:17]} Nc4 {[%emt 0:00:45]} 42. Bxc4 {[%emt 0:00:30]} Rxc4 {[%emt 0:00:05]} 43. Rda1 {[%emt 0:00:02]} Rb4 {[%emt 0:00:12]} 44. Ra7 {[%emt 0:00:34]} Rb7 {[%emt 0:00:30]} 45. Rxb7 {[%emt 0:00:41]} Qxb7 {[%emt 0:00:06]} 46. Bc1 {[%emt 0:00:09]} Bxc3 {[%emt 0:00:16]} 47. bxc3 {[%emt 0:00:02]} Qxd5 {[%emt 0:00:07]} 48. c4 {[%emt 0:00:25]} Qxc4 {[%emt 0:00:13]} 49. Bb2 {[%emt 0:00:09]} Qb3 {[%emt 0:02:37]} 50. Qd2 {[%emt 0:02:07]} Kh7 {[%emt 0:02:11]} 51. Ra7 {[%emt 0:00:48]} g5 {[%emt 0:00:00]} 52. Bc3 {[%emt 0:00:31]} Be4 {[%emt 0:00:13]} 53. fxg5 {[%emt 0:00:24]} Rg8 {[%emt 0:00:44]} 54. Qf2 {[%emt 0:00:32]} Bg6 {[%emt 0:00:30]} 55. Qf6 {[%emt 0:00:33]} Qc2+ {[%emt 0:00:28]} 56. Kg1 {[%emt 0:00:02]} Qb3 {[%emt 0:00:29]} 57. Re7 {[%emt 0:00:53]} Qd5 {[%emt 0:00:30]} 58. Kf2 {[%emt 0:00:31]} Qb3 {[%emt 0:00:15]} 59. Kg1 {[%emt 0:00:31]} Qa2 {[%emt 0:00:09]} 60. Rb7 {[%emt 0:00:36]} Qd5 {[%emt 0:00:21]} 61. Re7 {[%emt 0:00:13]} 1/2-1/2

[Event "1st Bangalore GM-Open-A 2024"]
[Site "Bangalore"]
[Date "2024.01.21"]
[Round "5.40"]
[White "Saptarshi, Roy"]
[Black "Ankit Ray"]
[Result "1/2-1/2"]
[ECO "B47"]
[WhiteElo "2322"]
[BlackElo "1912"]
[Annotator "RC"]
[PlyCount "65"]
[EventDate "2024.01.20"]
[EventType "swiss"]
[EventCountry "IND"]
[SourceTitle "playchess.com"]
[Source "ChessBase"]
[SourceQuality "1"]
[TimeControl "5400+30"]

1. e4 {[%emt 1:31:00]} c5 {[%emt 0:00:30]} 2. Nf3 {[%emt 0:00:30]} e6 {[%emt 0:00:30]} 3. d4 {[%emt 0:00:30]} cxd4 {[%emt 0:00:30]} 4. Nxd4 {[%emt 0:00:30]} Nc6 {[%emt 0:00:30]} 5. Nc3 {[%emt 0:00:30]} Qc7 {[%emt 0:00:30]} 6. g3 {[%emt 0:00:30]} a6 {[%emt 0:00:30]} 7. a4 {[%emt 0:00:30]} Nf6 {[%emt 0:00:30]} 8. Bg2 {[%emt 0:00:30]} h5 {[%emt 0:00:30]} 9. b3 {[%emt 0:00:30]} b6 {[%emt 0:00:30]} 10. Nde2 {[%emt 0:00:30]} Bb7 {[%emt 0:00:30]} 11. Bf4 {[%emt 0:00:30]} Ne5 {[%emt 0:00:30]} 12. Qd4 {[%emt 0:00:30]} d6 {[%emt 0:00:30]} 13. h3 {[%emt 0:00:30]} Rd8 {[%emt 0:00:30]} 14. Be3 {[%emt 0:00:30]} Nfd7 {[%emt 0:00:30]} 15. f4 {[%emt 0:00:30]} Nc6 {[%emt 0:00:30]} 16. Qd2 {[%emt 0:00:30]} Be7 {[%emt 0:00:30]} 17. Rd1 {[%emt 0:00:30]} Nf6 {[%emt 0:00:30]} 18. O-O {[%emt 0:00:00]} Rc8 {[%emt 0:47:23]} 19. Qe1 {[%emt 0:00:00]} O-O {[%emt 0:03:37]} 20. Qf2 {[%emt 0:00:00]} Nb4 {[%emt 0:04:12]} 21. Bxb6 {[%emt 0:00:00]} Qb8 {[%emt 0:00:07]} 22. e5 {[%emt 0:00:00]} Bxg2 {[%emt 0:00:30]} 23. exf6 {[%emt 0:00:00]} Bxf6 {[%emt 0:00:30]} 24. Kxg2 {[%emt 0:00:00]} Bd8 {[%emt 0:00:30]} 25. Kh2 {[%emt 0:00:00]} Bf6 {[%emt 0:00:30]} 26. Kg1 Nxc2 27. Kg2 {[%emt 0:00:00]} Be7 {[%emt 0:12:24]} 28. Kh2 {[%emt 0:00:00]} Bf6 {[%emt 0:00:02]} 29. Kg2 {[%emt 0:00:00]} Be7 {[%emt 0:00:01]} 30. Kh2 {[%emt 0:00:00]} Bf6 {[%emt 0:00:01]} 31. Kg2 {[%emt 0:00:00]} Be7 {[%emt 0:00:02]} 32. Kh2 {[%emt 0:00:00]} Bf6 {[%emt 0:00:04]} 33. Kg2 {[%emt 0:00:12]} 1/2-1/2

[Event "1st Bangalore GM-Open-A 2024"]
[Site "Bangalore"]
[Date "2024.01.21"]
[Round "6.1"]
[White "Neelash Saha"]
[Black "Gupta, Abhijeet"]
[Result "0-1"]
[ECO "A49"]
[WhiteElo "2446"]
[BlackElo "2605"]
[Annotator "TA"]
[PlyCount "92"]
[EventDate "2024.01.20"]
[EventType "swiss"]
[EventCountry "IND"]
[SourceTitle "playchess.com"]
[Source "ChessBase"]
[SourceQuality "1"]
[TimeControl "5400+30"]

{[%evp 10,92,30,31,29,12,23,8,35,1,0,-29,-40,-33,-30,-27,-39,-50,-39,-50,-43,-68,-57,-93,-99,-95,-78,-71,-68,-72,-70,-74,-74,-64,-68,-69,-66,-67,-28,-47,-22,-50,-56,-67,-35,-38,-26,-35,-38,-47,-54,-48,-32,-58,-66,-40,-43,-62,-62,-62,-62,-55,-25,-45,-48,-54,-62,-66,-53,-60,-64,-1187,-1001,-29955,-29955,-29955,-5102,-12849,-29955,-9483,-7219,-29961,-29956,-5522,-5114]} 1. b3 {[%emt 0:00:04]} Nf6 {[%emt 0:00:44]} 2. Bb2 {[%emt 0:00:05]} g6 {[%emt 0:00:08]} 3. Nf3 {[%emt 0:00:19]} Bg7 {[%emt 0:00:08]} 4. g3 {[%emt 0:00:07]} d6 {[%emt 0:00:47]} 5. d4 {[%emt 0:00:07]} O-O {[%emt 0:01:04]} 6. Bg2 {[%emt 0:00:07]} b5 {[%emt 0:01:11] A49: 1 d4 Nf6 2 Nf3 g6 3 g3: Anti-King's Indian systems.} 7. O-O {[%emt 0:01:49][%cal Of3e5]} Bb7 {[%emt 0:00:30]} 8. Qd3 {[%emt 0:00:15]} a6 {[%emt 0:01:50] The position is equal.} 9. Nbd2 {[%emt 0:00:12]} c5 {[%emt 0:06:55] [#]} 10. d5 $146 {[%emt 0:02:53]} ({Predecessor:} 10. dxc5 dxc5 11. Qxd8 Rxd8 12. Rfd1 Nbd7 13. a4 Nb6 14. Ne5 Bxg2 15. Kxg2 Ng4 16. Nxg4 Bxb2 {1-0 Dubov,D (2708)-Mamedov,R (2646) Speed Chess Q1 KO blitz 2022 (1.7)}) 10... c4 {[%emt 0:03:07]} ({Don't play} 10... Nxd5 11. Bxg7 Kxg7 12. Nh4 $16) 11. bxc4 {[%emt 0:03:34]} bxc4 {[%emt 0:00:22]} 12. Nxc4 {[%emt 0:00:05]} Bxd5 {[%emt 0:03:35]} 13. Nfd2 {[%emt 0:05:49] Prevents Be4} Bxg2 {[%emt 0:02:32]} 14. Kxg2 {[%emt 0:00:07]} Nbd7 {[%emt 0:00:10]} 15. Nb3 {[%emt 0:01:33]} Qc7 {[%emt 0:00:52]} 16. e4 {[%emt 0:08:32]} Rfc8 {[%emt 0:05:22]} 17. Ne3 {[%emt 0:00:08]} Qb7 {[%emt 0:02:48]} 18. f3 {[%emt 0:02:55] [#]} Ng4 $1 {[%emt 0:18:00][%mdl 64] Discovered Attack} 19. Nxg4 {[%emt 0:08:01] And now Bxg7 would win.} Bxb2 {[%emt 0:00:06]} 20. Rab1 {[%emt 0:00:03]} Bg7 {[%emt 0:02:18]} 21. c4 {[%emt 0:01:47]} Qc6 {[%emt 0:02:07]} 22. Rfc1 {[%emt 0:04:12]} h5 {[%emt 0:01:48]} 23. Ne3 {[%emt 0:00:06]} Ne5 {[%emt 0:00:14]} 24. Qe2 {[%emt 0:02:53]} e6 {[%emt 0:00:54] Against Nd5} 25. Rc2 {[%emt 0:05:29]} Rab8 {[%emt 0:03:02]} 26. Rd1 {[%emt 0:04:08]} Bh6 {[%emt 0:08:00]} 27. c5 {[%emt 0:01:11]} dxc5 {[%emt 0:09:56][%mdl 64] Remove Defender} 28. Rxc5 {[%emt 0:02:14]} Qb6 {[%emt 0:01:06]} 29. Nc4 {[%emt 0:00:06]} Nxc4 {[%emt 0:04:49]} 30. Rxc4 {[%emt 0:00:55]} Qe3 {[%emt 0:03:38]} (30... Qb5 {simplifies} 31. Rxc8+ Rxc8 32. Qxb5 axb5 33. f4 g5) 31. Qc2 {[%emt 0:02:15]} Rxc4 {[%emt 0:00:35]} 32. Qxc4 {[%emt 0:00:06] [#]} a5 $1 {[%emt 0:00:10][%cal Oa5a4] Hoping for ...a4!} 33. Rd2 {[%emt 0:02:21] [#]} (33. Qc2 Bg7) 33... h4 $1 {[%emt 0:01:07] ...Qe1 is the strong threat.} 34. f4 {[%emt 0:10:35]} Rb4 $36 {[%emt 0:03:12][%mdl 2048] Black is more active.} 35. Qe2 {[%emt 0:00:56]} Qb6 {[%emt 0:04:48] Repels Rd8+} (35... Qxe4+ {simplifies} 36. Qxe4 Rxe4 37. Nxa5 hxg3 38. hxg3 g5) 36. Rc2 {[%emt 0:01:04] [#]} e5 $1 {[%emt 0:04:34]} 37. f5 $1 {[%emt 0:06:44]} gxf5 {[%emt 0:00:40] Threatens to win with ...hxg3.} 38. exf5 {[%emt 0:01:02]} Qb7+ {[%emt 0:01:20]} 39. Kh3 {[%emt 0:03:10]} hxg3 $1 {[%emt 0:00:34] Strongly threatening ...Bg5.} 40. Qxe5 $2 {[%emt 0:00:05][%mdl 8192] Loses the game.} (40. Nxa5 $15 gxh2 41. Qg2+ Qxg2+ 42. Rxg2+ Kf8 43. Rxh2) 40... gxh2 $19 {[%emt 0:00:46]} 41. Qxh2 {[%emt 0:00:48]} Bg5 {[%emt 0:01:55]} 42. Qg2 {[%emt 0:05:17]} Rh4+ {[%emt 0:00:06]} 43. Kg3 {[%emt 0:00:02]} Qb8+ {[%emt 0:00:35]} 44. Kf2 {[%emt 0:00:06]} Rh2 {[%emt 0:00:52] ( -> ...Qe5)} 45. Rc8+ {[%emt 0:00:05]} Qxc8 {[%emt 0:00:03]} 46. Qxh2 {[%emt 0:00:03]} Qc2+ {[%emt 0:00:43] Weighted Error Value: White=0.47/Black=0.04 (flawless)} 0-1